[Event "CCT Chessable Masters D-II 2024"]
[Site "Online"]
[Date "2024.02.04"]
[Round "53"]
[White "jefferyx"]
[Black "Yu, Yangyi"]
[Result "1/2-1/2"]
[ECO "C47"]
[WhiteElo "2682"]
[BlackElo "2720"]
[Annotator "ChessBase"]
[PlyCount "61"]
[EventDate "2024.01.12"]
[EventType "k.o."]
[EventCountry "NET"]
[SourceTitle "playchess.com"]
[Source "ChessBase"]
[SourceQuality "1"]
[TimeControl "600+2"]

1. e4 {[%emt 0:00:03]} e5 {[%emt 0:00:04]} 2. Nf3 {[%emt 0:00:00]} Nf6 {[%emt 0:00:01]} 3. Nc3 {[%emt 0:00:01]} Nc6 {[%emt 0:00:04]} 4. d4 {[%emt 0:00:01]} exd4 {[%emt 0:00:01]} 5. Nxd4 {[%emt 0:00:00]} Bb4 {[%emt 0:00:01]} 6. Nxc6 {[%emt 0:00:01]} bxc6 {[%emt 0:00:01]} 7. Bd3 {[%emt 0:00:00]} d5 {[%emt 0:00:06]} 8. exd5 {[%emt 0:00:01]} Qe7+ {[%emt 0:00:06]} 9. Qe2 {[%emt 0:00:12]} Qxe2+ {[%emt 0:00:08]} 10. Kxe2 {[%emt 0:00:00]} cxd5 {[%emt 0:00:02]} 11. Nb5 {[%emt 0:00:03]} Kd7 {[%emt 0:00:01]} 12. Bf4 {[%emt 0:00:28]} c6 {[%emt 0:01:16]} 13. Nd4 {[%emt 0:00:45]} Bd6 {[%emt 0:01:10]} 14. Kf3 {[%emt 0:00:15]} Kc7 {[%emt 0:00:13]} 15. h3 {[%emt 0:00:04]} Re8 {[%emt 0:00:13]} 16. Rhe1 {[%emt 0:00:17]} Bd7 {[%emt 0:00:01]} 17. Bg5 {[%emt 0:01:12]} Ne4 {[%emt 0:00:34]} 18. Bxe4 {[%emt 0:00:06]} dxe4+ {[%emt 0:00:04]} 19. Ke3 {[%emt 0:00:02]} h6 {[%emt 0:00:32]} 20. Bf4 {[%emt 0:00:30]} Bxf4+ {[%emt 0:00:01]} 21. Kxf4 {[%emt 0:00:00]} g5+ {[%emt 0:00:03]} 22. Ke3 {[%emt 0:00:02]} f5 {[%emt 0:00:00]} 23. g3 {[%emt 0:00:01]} Rf8 {[%emt 0:00:16]} 24. Ne2 {[%emt 0:00:07]} Rad8 {[%emt 0:00:03]} 25. Rh1 {[%emt 0:00:09]} Rf7 {[%emt 0:00:28]} 26. h4 {[%emt 0:00:37]} f4+ {[%emt 0:00:45]} 27. gxf4 {[%emt 0:00:00]} gxf4+ {[%emt 0:00:00]} 28. Nxf4 {[%emt 0:00:00]} Rdf8 {[%emt 0:00:01]} 29. Ng6 {[%emt 0:00:01]} Rf3+ {[%emt 0:00:06]} 30. Kxe4 {[%emt 0:01:23]} R8f6 {[%emt 0:00:02]} 31. h5 {[%emt 0:01:55]} 1/2-1/2

[Event "CCT Chessable Masters D-II 2024"]
[Site "Online"]
[Date "2024.02.04"]
[Round "53"]
[White "Mamedov, Rauf"]
[Black "AnishGiri"]
[Result "0-1"]
[ECO "C42"]
[WhiteElo "2651"]
[BlackElo "2738"]
[Annotator "TA"]
[PlyCount "76"]
[EventDate "2024.01.12"]
[EventType "k.o."]
[EventCountry "NET"]
[SourceTitle "playchess.com"]
[Source "ChessBase"]
[SourceQuality "1"]
[TimeControl "600+2"]

{[%evp 16,76,10,5,13,0,18,-7,4,-160,29,0,0,0,0,0,59,61,125,142,216,204,213,178,187,187,279,267,263,160,157,159,279,198,233,229,256,241,233,143,218,0,195,194,232,232,244,214,322,143,251,-438,-438,-648,-648,-648,-648,-643,-641,-616,-590,-590,-590]} 1. e4 {[%emt 0:00:03]} e5 {[%emt 0:00:04]} 2. Nf3 {[%emt 0:00:02]} Nf6 {[%emt 0:00:04]} 3. Nxe5 {[%emt 0:00:09]} d6 {[%emt 0:00:00]} 4. Nf3 {[%emt 0:00:01]} Nxe4 {[%emt 0:00:01]} 5. Nc3 {[%emt 0:00:02]} Nxc3 {[%emt 0:00:01]} 6. dxc3 {[%emt 0:00:00]} Be7 {[%emt 0:00:01]} 7. Bf4 {[%emt 0:00:04]} O-O {[%emt 0:00:04]} 8. Qd2 {[%emt 0:00:01]} Nd7 {[%emt 0:00:01] C42: Petroff Defence: 3 Nxe5 and unusual White 3rd moves.} 9. O-O-O {[%emt 0:00:02]} Re8 {[%emt 0:00:01]} 10. h4 {[%emt 0:00:03]} h6 $5 {[%emt 0:00:06][%mdl 4] is currently scoring better than 10...Nc5. An interesting side line.} (10... Nc5 $5) 11. Kb1 $146 {[%emt 0:00:17]} ({Predecessor:} 11. Bc4 Nb6 12. Bd3 Bf8 13. Rde1 Bg4 14. Rxe8 Qxe8 15. Nd4 c5 16. Nb5 c4 17. Nc7 {0-1 Smirnov,A (2586)-Paravyan,D (2612) Titled Tuesday intern op 16th Jan Late blitz 2024 (11)}) 11... Bf8 {[%emt 0:01:44] [#]} 12. Ng5 $2 {[%emt 0:01:10]} (12. Nd4 $1 $11) 12... Nf6 $2 {[%emt 0:00:41]} ({Black should play} 12... hxg5 $17 13. hxg5 g6) 13. Bd3 {[%emt 0:00:07]} (13. f3 $5) 13... d5 {[%emt 0:00:23]} 14. f3 {[%emt 0:00:02]} c5 {[%emt 0:00:48]} (14... hxg5 $2 15. hxg5 Be7 16. g4 $18 (16. gxf6 Bxf6 17. g4 g5 $18)) 15. g4 {[%emt 0:00:08]} Qb6 {[%emt 0:01:02]} (15... hxg5 16. hxg5 Ne4 (16... c4 17. Qh2) 17. Qh2 (17. fxe4 g6 $18) 17... f5 18. g6 (18. fxe4 Qb6 $18) 18... Nxc3+ 19. Ka1) (15... Qa5 $11) 16. c4 $1 $14 {[%emt 0:00:14]} d4 {[%emt 0:00:17]} (16... hxg5 $2 17. hxg5 g6 (17... dxc4 $2 18. Qh2 $18) 18. gxf6 Qxf6 19. cxd5 $18) (16... Qa6 $1 $14) 17. Rdg1 $16 {[%emt 0:00:28]} Re7 {[%emt 0:01:24]} (17... hxg5 $2 18. hxg5 g6 19. Qh2 $18 (19. gxf6 Qxf6 20. Qh2 Bg7 $18) (19. gxf6 Qxf6 20. Qh2 Bg7 $18)) (17... Bd7 $16) 18. Nh3 $18 {[%emt 0:00:39]} Kh8 {[%emt 0:00:43]} 19. g5 {[%emt 0:00:08]} Nh5 {[%emt 0:00:01]} 20. gxh6 {[%emt 0:00:09]} Bxh3 {[%emt 0:00:31]} (20... g6 $142 21. Bg5 Bxh3) 21. hxg7+ $18 {[%emt 0:00:14]} (21. Rxh3 g6 $16) 21... Bxg7 {[%emt 0:00:01]} 22. Rxh3 {[%emt 0:00:03]} Nxf4 {[%emt 0:00:00]} 23. Qxf4 {[%emt 0:00:01]} Rae8 {[%emt 0:00:01]} (23... Bh6 $16 24. Qf5 Qg6 25. Qxg6 (25. Rxg6 $2 Re1#) 25... fxg6) 24. Rhh1 {[%emt 0:00:03]} Qf6 {[%emt 0:00:05]} 25. Qg4 {[%emt 0:00:16]} Bh6 {[%emt 0:00:08]} 26. a4 {[%emt 0:00:36]} Re5 {[%emt 0:00:11]} 27. Qd7 {[%emt 0:00:14]} Qe7 {[%emt 0:00:11] [#]} (27... R5e7 $16 28. Qg4 Re3) 28. Qg4 $2 {[%emt 0:00:17]} (28. Qh3 $1 $18) 28... Qe6 $2 {[%emt 0:00:01]} (28... Qf6 $1 $11 {and Black stays safe.}) 29. Qg2 $18 {[%emt 0:02:36]} Re3 {[%emt 0:00:13]} 30. f4 {[%emt 0:00:13]} b6 {[%emt 0:00:22]} 31. Qb7 {[%emt 0:00:44]} a5 {[%emt 0:00:17]} (31... Rf8 $142 32. f5 (32. Qxa7 Qc6 $18) (32. Qg2 Qd7 $18) 32... Qc8) 32. Qc7 {[%emt 0:00:08]} ({But not} 32. Qg2 f5 33. Qh2 Rf3) (32. f5 $18 {has better winning chances.} Qf6 33. Ka2) 32... Qf6 {[%emt 0:00:06]} (32... Rc8 $16 33. Qb7 Re8) 33. Ka2 $4 {[%emt 0:00:11][%mdl 8192] [#]} ({Don't blunder} 33. Rg4 $2 R3e7 $19) (33. Qd7 $18) 33... R3e7 $1 $19 {[%emt 0:00:05]} (33... Bxf4 $2 {loses.} 34. Qb7 $18) 34. Re1 {[%emt 0:00:40]} (34. Qxe7 $142 Rxe7 (34... Qxe7 $2 35. b3 $19) 35. b3) 34... Rxe1 $19 {[%emt 0:00:01]} 35. Rxe1 {[%emt 0:00:01]} Rxe1 {[%emt 0:00:01]} 36. Qc8+ {[%emt 0:00:01]} Kg7 {[%emt 0:00:01]} 37. Qg4+ {[%emt 0:00:00]} Kf8 {[%emt 0:00:04]} 38. Qc8+ {[%emt 0:00:01]} Re8 {[%emt 0:00:02]} 0-1

[Event "CCT Chessable Masters D-II 2024"]
[Site "Online"]
[Date "2024.02.05"]
[Round "54"]
[White "Sibelephant"]
[Black "Yu, Yangyi"]
[Result "1/2-1/2"]
[ECO "A13"]
[WhiteElo "2781"]
[BlackElo "2720"]
[Annotator "TA"]
[PlyCount "70"]
[EventDate "2024.01.12"]
[EventType "k.o."]
[EventCountry "NET"]
[SourceTitle "playchess.com"]
[Source "ChessBase"]
[SourceQuality "1"]
[TimeControl "600+2"]

{[%evp 9,70,20,27,1,27,20,26,24,44,0,0,0,0,0,0,0,0,-26,0,0,0,-5,0,0,0,-9,-8,-11,-4,-45,-36,-39,-39,-57,-4,-12,0,0,0,0,0,0,0,0,0,-6,-7,-8,0,0,0,0,0,0,0,0,0,0,0,0,0,0,0]} 1. c4 {[%emt 0:00:06]} e6 {[%emt 0:00:04]} 2. g3 {[%emt 0:00:24]} d5 {[%emt 0:00:02]} 3. Bg2 {[%emt 0:00:01]} d4 {[%emt 0:00:11]} 4. Nf3 {[%emt 0:00:14]} Nc6 {[%emt 0:00:01]} 5. O-O {[%emt 0:00:15]} Bc5 {[%emt 0:00:03]} 6. d3 {[%emt 0:00:46]} a5 {[%emt 0:00:06]} 7. e3 {[%emt 0:01:19]} Nge7 {[%emt 0:00:06]} 8. Na3 {[%emt 0:00:27] White has an edge.} O-O {[%emt 0:00:08]} 9. Re1 {[%emt 0:01:45]} dxe3 {[%emt 0:01:26]} 10. Bxe3 {[%emt 0:00:05]} Bxe3 {[%emt 0:00:04]} 11. Rxe3 {[%emt 0:00:04]} Nf5 {[%emt 0:00:04]} 12. Re1 {[%emt 0:00:36]} Ncd4 {[%emt 0:00:17]} 13. Nc2 {[%emt 0:00:52]} c5 {[%emt 0:00:11]} 14. Nfxd4 {[%emt 0:00:31]} Nxd4 {[%emt 0:00:00]} 15. Qd2 {[%emt 0:00:06]} Nxc2 {[%emt 0:00:29]} 16. Qxc2 {[%emt 0:00:00]} Ra6 {[%emt 0:00:01]} 17. Qc3 {[%emt 0:00:31]} Rd6 {[%emt 0:00:08]} 18. Re3 {[%emt 0:00:10]} b6 {[%emt 0:00:11]} 19. a3 {[%emt 0:00:01]} a4 {[%emt 0:00:04]} 20. b4 {[%emt 0:00:02]} axb3 {[%emt 0:00:02]} 21. Qxb3 {[%emt 0:00:02]} Qc7 {[%emt 0:00:19]} (21... Re8 $1 $15) 22. a4 $11 {[%emt 0:00:13] The position is equal.} Rfd8 {[%emt 0:00:40]} 23. Qc3 {[%emt 0:00:29]} Bb7 {[%emt 0:00:48]} 24. Bxb7 {[%emt 0:00:02]} Qxb7 {[%emt 0:00:01]} 25. a5 {[%emt 0:00:01]} bxa5 {[%emt 0:00:00]} 26. Qxa5 {[%emt 0:00:05]} Qc8 {[%emt 0:00:15]} 27. Qc3 {[%emt 0:00:37]} h6 {[%emt 0:00:05]} 28. Ra5 {[%emt 0:00:05]} Rd4 {[%emt 0:00:06]} 29. Qa3 {[%emt 0:00:04]} Qd7 {[%emt 0:00:26]} 30. Rxc5 {[%emt 0:00:16]} Rxd3 {[%emt 0:00:03]} 31. Rxd3 {[%emt 0:00:01]} Qxd3 {[%emt 0:00:00]} 32. Qxd3 {[%emt 0:00:01]} Rxd3 {[%emt 0:00:01] KR-KR} 33. h4 {[%emt 0:00:02]} g6 {[%emt 0:00:04]} 34. Kg2 {[%emt 0:00:10]} Rc3 {[%emt 0:00:08]} 35. g4 {[%emt 0:00:05]} Kg7 {[%emt 0:00:08] Weighted Error Value: White=0.06 (flawless) /Black=0.06 (flawless) .  Mistake:       	---       	Black=1      Inaccurate:     	White=3     	Black=2      OK:         	White=12    	Black=10     Best:        	---       	Black=1} 1/2-1/2

[Event "CCT Chessable Masters D-II 2024"]
[Site "Online"]
[Date "2024.02.05"]
[Round "54"]
[White "AnishGiri"]
[Black "GMBenjaminBok"]
[Result "1-0"]
[ECO "D50"]
[WhiteElo "2745"]
[BlackElo "2674"]
[Annotator "TA"]
[PlyCount "103"]
[EventDate "2024.01.12"]
[EventType "k.o."]
[EventCountry "NET"]
[SourceTitle "playchess.com"]
[Source "ChessBase"]
[SourceQuality "1"]
[TimeControl "600+2"]

{[%evp 14,103,18,18,25,15,21,16,20,12,16,12,19,12,21,14,16,18,20,19,16,18,43,34,72,86,77,34,80,86,90,67,59,43,86,81,90,97,86,54,35,3,4,4,29,25,17,10,41,41,117,105,125,114,122,120,227,200,196,195,200,197,197,201,205,202,227,229,237,227,278,224,225,222,364,356,366,374,381,381,398,392,1116,834,1174,1131,1040,1040,1019,1014,29965,29951]} 1. Nf3 {[%emt 0:00:04]} d5 {[%emt 0:00:05]} 2. d4 {[%emt 0:00:01]} Nf6 {[%emt 0:00:01]} 3. c4 {[%emt 0:00:00]} e6 {[%emt 0:00:02]} 4. Nc3 {[%emt 0:00:01]} c5 {[%emt 0:00:02]} 5. cxd5 {[%emt 0:00:03]} cxd4 {[%emt 0:00:01]} 6. Qxd4 {[%emt 0:00:01]} exd5 {[%emt 0:00:01]} 7. Bg5 {[%emt 0:00:01]} Be7 {[%emt 0:00:04]} 8. e3 {[%emt 0:00:02]} O-O {[%emt 0:00:05]} 9. Be2 {[%emt 0:00:03]} h6 {[%emt 0:00:50]} 10. Bxf6 {[%emt 0:00:02]} Bxf6 {[%emt 0:00:02] The position is equal.} 11. Qd2 {[%emt 0:00:00]} Be6 {[%emt 0:01:09]} 12. Rd1 {[%emt 0:00:03][%cal Rc3d5,Ba1d1,Bd1d5,Bd5d7,Bd7c7][%mdl 32]} Nc6 {[%emt 0:00:10]} 13. Nxd5 {[%emt 0:00:34]} Bxd5 {[%emt 0:00:22]} 14. Qxd5 {[%emt 0:00:00]} Qxd5 {[%emt 0:00:47]} 15. Rxd5 {[%emt 0:00:02]} Bxb2 {[%emt 0:00:03]} 16. O-O {[%emt 0:00:01]} Bf6 {[%emt 0:00:26] Black is weak on the light squares} 17. Rd7 {[%emt 0:00:23]} b6 {[%emt 0:00:33]} 18. Bc4 {[%emt 0:00:32]} Na5 {[%emt 0:00:31] [#]} 19. Ba6 {[%emt 0:00:49]} Rfd8 {[%emt 0:00:18]} 20. Rc7 {[%emt 0:00:06] White has more active pieces.} Rd6 {[%emt 0:01:25]} (20... Bb2 $14 {was preferrable.}) 21. Rfc1 $16 {[%emt 0:00:59]} Bd8 {[%emt 0:00:31]} 22. R7c2 {[%emt 0:00:18]} g6 {[%emt 0:00:30]} 23. g4 {[%emt 0:00:06]} Bf6 {[%emt 0:00:22]} 24. Kg2 {[%emt 0:00:36]} Kg7 {[%emt 0:00:15]} 25. h4 {[%emt 0:00:20]} Bd8 {[%emt 0:00:50]} 26. Kg3 {[%emt 0:00:20]} Rb8 {[%emt 0:00:04]} 27. Nd4 {[%emt 0:00:19]} b5 {[%emt 0:00:20]} 28. Rc8 {[%emt 0:00:19]} ({Much worse is} 28. Bxb5 Rxd4 29. exd4 Rxb5 $19) 28... Rbb6 {[%emt 0:00:52]} (28... Rxc8 {simplifies} 29. Bxc8 b4 30. Rb1 Nc6) 29. Bxb5 {[%emt 0:00:07]} Bf6 {[%emt 0:00:02]} 30. Be2 {[%emt 0:01:08]} Bxd4 {[%emt 0:00:05]} 31. exd4 {[%emt 0:00:01]} Nc6 {[%emt 0:00:01] [#] Black is now going downhill.} (31... Rxd4 $14 32. R1c2 Nb7) 32. d5 $1 $36 {[%emt 0:00:28][%mdl 2560] White is really pushing.} Ne7 {[%emt 0:00:04]} (32... Nd4 33. Bc4) 33. R8c7 {[%emt 0:00:01][%csl LRa7,LRe7]} Nxd5 {[%emt 0:00:00]} 34. Rxa7 {[%emt 0:00:01]} g5 {[%emt 0:00:13]} (34... Rb2 $16 35. Bc4 Rd2) 35. hxg5 {[%emt 0:00:07]} hxg5 {[%emt 0:00:00]} 36. Rc5 {[%emt 0:00:07]} Rbc6 {[%emt 0:00:05]} 37. Rxc6 {[%emt 0:00:18]} Rxc6 $18 {[%emt 0:00:00][%mdl 4096] Endgame. KRB-KRN} 38. Ra5 {[%emt 0:00:00]} Nc3 {[%emt 0:00:03] [#]} 39. Bf3 {[%emt 0:00:32]} (39. Rxg5+ Kf8 40. Bd3 Nxa2 $11) 39... Rc4 {[%emt 0:00:03]} 40. Rxg5+ {[%emt 0:00:05]} Kf8 {[%emt 0:00:01]} 41. Ra5 {[%emt 0:00:02]} Rb4 {[%emt 0:00:01]} 42. Ra3 {[%emt 0:00:07]} Rc4 {[%emt 0:00:04]} 43. Ra7 {[%emt 0:00:19]} Rc5 {[%emt 0:00:03]} (43... Kg7 $142 44. a3 Kg6) 44. a4 {[%emt 0:00:03][%cal Ba2a4,Ba4a5,Ba5a6,Ba6a7][%mdl 32]} Kg7 {[%emt 0:00:01]} 45. a5 {[%emt 0:00:06] Hoping for a6.} Nb5 {[%emt 0:00:01]} 46. Rd7 {[%emt 0:00:10] Black must now prevent a6.} Rc3 {[%emt 0:00:01]} 47. Kg2 {[%emt 0:00:16] a6 is the strong threat.} Ra3 $2 {[%emt 0:00:03]} (47... Nc7 48. Be2 Kf6) 48. Bc6 {[%emt 0:00:19]} Nc3 {[%emt 0:00:03]} 49. Rd3 {[%emt 0:00:01]} Kf6 {[%emt 0:00:02] [#]} 50. a6 $1 {[%emt 0:00:05]} Ke7 {[%emt 0:00:02] [#]} (50... Rxa6 51. Rxc3) 51. Rxc3 $1 {[%emt 0:00:05]} Rxc3 {[%emt 0:00:01]} (51... Rxa6 52. Be4) 52. a7 {[%emt 0:00:01] Weighted Error Value: White=0.07 (flawless) /Black=0.39.  Mistake:       	---       	Black=5      Inaccurate:     	White=3     	Black=4      OK:         	White=18    	Black=14     Best:        	White=4     	Black=2      Brilliant:      	White=1     	---} 1-0

[Event "CCT Chessable Masters D-II 2024"]
[Site "Online"]
[Date "2024.02.05"]
[Round "54"]
[White "Yu, Yangyi"]
[Black "Sibelephant"]
[Result "1/2-1/2"]
[ECO "C55"]
[WhiteElo "2720"]
[BlackElo "2779"]
[Annotator "TA"]
[PlyCount "174"]
[EventDate "2024.01.12"]
[EventType "k.o."]
[EventCountry "NET"]
[SourceTitle "playchess.com"]
[Source "ChessBase"]
[SourceQuality "1"]
[TimeControl "600+2"]

{[%evp 124,174,80,80,80,0,80,80,80,80,80,80,80,0,0,0,0,0,0,0,0,0,0,0,0,0,0,0,0,0,0,0,0,0,0,0,0,0,0,0,0,0,0,0,0,0,0,0,0,0,0,0,0]} 1. e4 {[%emt 0:00:05]} e5 {[%emt 0:02:21]} 2. Nf3 {[%emt 0:00:04]} Nc6 {[%emt 0:00:03]} 3. Bc4 {[%emt 0:00:03]} Nf6 {[%emt 0:00:03]} 4. d3 {[%emt 0:00:03]} Be7 {[%emt 0:00:02]} 5. O-O {[%emt 0:00:03]} O-O {[%emt 0:00:03]} 6. a4 {[%emt 0:00:02]} a5 {[%emt 0:00:04]} 7. h3 {[%emt 0:00:04]} d6 {[%emt 0:00:06]} 8. c3 {[%emt 0:00:04]} h6 {[%emt 0:00:18]} 9. Re1 {[%emt 0:00:05]} Nh7 {[%emt 0:00:03]} 10. d4 {[%emt 0:00:17]} Ng5 {[%emt 0:00:06]} 11. Nbd2 {[%emt 0:00:17]} Bf6 {[%emt 0:00:29]} 12. Nxg5 {[%emt 0:00:07]} Bxg5 {[%emt 0:00:03]} 13. Nf3 {[%emt 0:00:03]} Bxc1 {[%emt 0:00:04]} 14. Rxc1 {[%emt 0:00:02]} Qf6 {[%emt 0:00:04]} 15. Re3 {[%emt 0:00:10]} Ne7 {[%emt 0:00:13]} 16. Nh2 {[%emt 0:00:27]} Ng6 {[%emt 0:00:05]} 17. Ng4 {[%emt 0:00:08]} Qe7 {[%emt 0:00:34]} 18. Rg3 {[%emt 0:00:11]} Kh7 {[%emt 0:00:07]} 19. Ne3 {[%emt 0:00:08]} Nf4 {[%emt 0:00:24]} 20. Qb3 {[%emt 0:00:47]} exd4 {[%emt 0:00:47]} 21. cxd4 {[%emt 0:00:03]} Qxe4 {[%emt 0:00:13]} 22. Nd5 {[%emt 0:00:29]} c6 {[%emt 0:00:06]} 23. Nb6 {[%emt 0:00:45]} Rb8 {[%emt 0:00:05]} 24. Qe3 {[%emt 0:00:28]} Qxe3 {[%emt 0:00:26]} 25. fxe3 {[%emt 0:00:02]} Nh5 {[%emt 0:00:03]} 26. Rf3 {[%emt 0:00:10]} d5 {[%emt 0:00:08]} 27. Bd3+ {[%emt 0:00:03]} Kg8 {[%emt 0:00:02]} 28. Rc5 {[%emt 0:00:04]} Nf6 {[%emt 0:00:08]} 29. Rxa5 {[%emt 0:00:04]} Nd7 {[%emt 0:00:03]} 30. Nxc8 {[%emt 0:00:19]} Rfxc8 {[%emt 0:00:02]} 31. Ra7 {[%emt 0:00:04]} Nf6 {[%emt 0:00:07]} 32. a5 {[%emt 0:00:13]} Ra8 {[%emt 0:00:13]} 33. Rxb7 {[%emt 0:00:25]} Rxa5 {[%emt 0:00:03]} 34. Rf1 {[%emt 0:00:02]} Raa8 {[%emt 0:00:10]} 35. Rc1 {[%emt 0:00:05]} Ne4 {[%emt 0:00:29]} 36. Bxe4 {[%emt 0:00:14]} dxe4 {[%emt 0:00:03]} 37. Rb6 {[%emt 0:00:22]} f5 {[%emt 0:00:03]} 38. Rc5 {[%emt 0:00:09]} f4 {[%emt 0:00:15]} 39. exf4 {[%emt 0:00:07]} Rd8 {[%emt 0:00:03]} 40. Rc4 {[%emt 0:00:10]} Ra1+ {[%emt 0:00:15]} 41. Kf2 {[%emt 0:00:02]} Rd1 {[%emt 0:00:02]} 42. Ke3 {[%emt 0:00:18]} Re1+ {[%emt 0:00:04]} 43. Kf2 {[%emt 0:00:05]} Rd1 {[%emt 0:00:03]} 44. Rbxc6 {[%emt 0:00:07]} R8xd4 {[%emt 0:00:10]} 45. Rxd4 {[%emt 0:00:05]} Rxd4 {[%emt 0:00:03]} 46. Rc2 {[%emt 0:00:20]} Rb4 {[%emt 0:00:05]} 47. Ke3 {[%emt 0:00:05]} Kf7 {[%emt 0:00:04]} 48. f5 {[%emt 0:00:05]} h5 {[%emt 0:00:15]} 49. g4 {[%emt 0:00:12]} hxg4 {[%emt 0:00:07]} 50. hxg4 {[%emt 0:00:02]} Kf6 {[%emt 0:00:03]} 51. Rc6+ {[%emt 0:00:08]} Kf7 {[%emt 0:00:03]} 52. Rc2 {[%emt 0:00:15]} Kf6 {[%emt 0:00:02]} 53. Kf4 {[%emt 0:00:14]} e3+ {[%emt 0:00:03]} 54. Kf3 {[%emt 0:00:03]} Rb3 {[%emt 0:00:11]} 55. Rc6+ {[%emt 0:00:04]} Kf7 {[%emt 0:00:02]} 56. Rc7+ {[%emt 0:00:03]} Kf6 {[%emt 0:00:04]} 57. Rc6+ {[%emt 0:00:02]} Kf7 {[%emt 0:00:04]} 58. g5 {[%emt 0:00:05]} e2+ {[%emt 0:00:06]} 59. Kxe2 {[%emt 0:00:02]} Rxb2+ {[%emt 0:00:03]} 60. Kf3 {[%emt 0:00:03]} Rb1 {[%emt 0:00:11]} 61. Rc7+ {[%emt 0:00:04]} Kf8 {[%emt 0:00:02]} 62. Kg4 {[%emt 0:00:08]} Rh1 {[%emt 0:00:07]} 63. Rc8+ {[%emt 0:00:06]} Ke7 {[%emt 0:00:04]} 64. Rc7+ {[%emt 0:00:06]} Kf8 {[%emt 0:00:02]} 65. Ra7 {[%emt 0:00:03]} Kg8 {[%emt 0:00:10]} 66. Ra8+ {[%emt 0:00:06]} Kf7 {[%emt 0:00:02]} 67. g6+ {[%emt 0:00:03]} Ke7 {[%emt 0:00:04]} 68. Rg8 {[%emt 0:00:16]} (68. Ra7+ $16 Kf8 69. Rf7+ Kg8 70. Rb7) 68... Rg1+ $11 {[%emt 0:00:03]} 69. Kf4 {[%emt 0:00:10]} (69. Kh3 $5 Kf6 $8 70. Rf8+ Kg5 71. Rf7 $11) 69... Rf1+ {[%emt 0:00:02]} 70. Ke4 {[%emt 0:00:03]} Kf6 {[%emt 0:00:08]} 71. Rf8+ {[%emt 0:00:04]} Kg5 {[%emt 0:00:02]} 72. Rf7 {[%emt 0:00:05]} Re1+ {[%emt 0:00:04]} 73. Kd5 {[%emt 0:00:03]} Re2 {[%emt 0:00:04]} 74. Kd6 {[%emt 0:00:05]} Re1 {[%emt 0:00:03]} 75. Re7 {[%emt 0:00:14]} Rf1 {[%emt 0:00:03]} 76. Rxg7 {[%emt 0:00:24]} Rxf5 {[%emt 0:00:03]} 77. Ke7 {[%emt 0:00:05]} Rf6 {[%emt 0:00:03]} 78. Rg8 {[%emt 0:00:02]} Rxg6 {[%emt 0:00:03]} 79. Ra8 {[%emt 0:00:03]} Rg7+ {[%emt 0:00:03]} 80. Ke6 {[%emt 0:00:02]} Rg6+ {[%emt 0:00:02]} 81. Ke5 {[%emt 0:00:02]} Kh6 {[%emt 0:00:03]} 82. Ra1 {[%emt 0:00:03]} Rg5+ {[%emt 0:00:02]} 83. Kf6 {[%emt 0:00:03]} Rg6+ {[%emt 0:00:02]} 84. Kf5 {[%emt 0:00:02]} Rg5+ {[%emt 0:00:04]} 85. Kf6 $1 {[%emt 0:00:03]} Rg6+ {[%emt 0:00:02]} 86. Kf7 {[%emt 0:00:03]} Rg7+ {[%emt 0:00:02]} 87. Kf6 $1 {[%emt 0:00:02]} Rg6+ {[%emt 0:00:03]} 1/2-1/2